fUST/lending_fUST_20241029
["ID","MTS","AMOUNT","RATE_DAILY","PERIOD"]
[340968056,1730178642104,-1000.0,0.0002399,7]
[340968057,1730178642114,-1000.0,0.0002399,7]
[340968058,1730178642124,-1000.0,0.0002399,7]
[340968059,1730178642134,-1000.0,0.0002399,7]
[340968060,1730178642143,-1000.0,0.0002399,7]
[340968061,1730178642152,-1000.0,0.0002399,7]
[340968062,1730178642162,-1000.0,0.0002399,7]
[340968063,1730178642172,-1000.0,0.0002399,7]
[340968064,1730178642182,-1000.0,0.0002399,7]
[340968065,1730178642191,-1000.0,0.0002399,7]
[340968066,1730178642200,-1000.0,0.0002399,7]
[340968067,1730178642210,-1000.0,0.0002399,7]
[340968068,1730178642219,-1000.0,0.0002399,7]
[340968069,1730178642229,-1000.0,0.0002399,7]
[340968070,1730178642238,-1000.0,0.0002399,7]
[340968071,1730178642248,-333.331583,0.0002399,7]
[340968072,1730178642257,-1000.0,0.0002399,7]
[340968073,1730178642267,-333.331583,0.0002399,7]
[340968074,1730178642276,-1000.0,0.0002399,7]
[340968075,1730178642285,-1000.0,0.0002399,7]
[340968076,1730178642295,-1000.0,0.0002399,7]
[340968077,1730178642304,-1000.0,0.0002399,7]
[340968078,1730178642315,-1000.0,0.0002399,7]
[340968079,1730178642325,-1000.0,0.0002399,7]
[340968080,1730178642334,-1000.0,0.0002399,7]
[340968081,1730178642344,-1000.0,0.0002399,7]
[340968082,1730178642353,-1000.0,0.0002399,7]
[340968083,1730178642363,-1000.0,0.0002399,7]
[340968084,1730178642372,-1000.0,0.0002399,7]
[340968085,1730178642381,-333.331583,0.0002399,7]
[340968086,1730178642391,-1000.0,0.0002399,7]
[340968087,1730178642400,-333.331583,0.0002399,7]
[340968088,1730178642409,-1000.0,0.0002399,7]
[340968089,1730178642418,-1000.0,0.0002399,7]
[340968090,1730178642429,-1000.0,0.0002399,7]
[340968091,1730178642438,-1000.0,0.0002399,7]
[340968092,1730178642447,-1000.0,0.0002399,7]
[340968093,1730178642458,-1000.0,0.0002399,7]
[340968094,1730178642467,-1000.0,0.0002399,7]
[340968095,1730178642476,-1000.0,0.0002399,7]
[340968096,1730178642485,-1000.0,0.0002399,7]
[340968097,1730178642494,-1000.0,0.0002399,7]
[340968098,1730178642504,-220.65736327,0.0002399,7]
[340968101,1730178642824,-151.0,0.00023967,7]
[340968102,1730178642834,-151.0,0.00023967,7]
[340968103,1730178642844,-151.0,0.00023967,7]
[340968104,1730178642854,-0.40201646,0.00023967,7]
[340968205,1730178646407,-150.59798354,0.00023967,7]
[340968207,1730178646416,-151.0,0.00023968,7]
[340968209,1730178646425,-151.0,0.00023968,7]
[340968211,1730178646437,-151.0,0.0002397,7]
[340968213,1730178646447,-45.40201646,0.0002397,7]
[340968286,1730178698278,169.46406765,0.000125,2]
[340968345,1730179138248,300.0,0.000201,3]
[340968361,1730179257789,172.588396,0.00013973,2]
[340968389,1730179630115,-650.70395978,0.00021361,2]
[340968390,1730179630149,-852.07591412,0.00021361,2]
[340968391,1730179630171,-300.0,0.00021479,2]
[340968392,1730179630192,-300.0,0.00021479,2]
[340968393,1730179630214,-13736.82512369,0.0002148,2]
[340968397,1730179729393,393.999999,0.0002,2]
[340968399,1730179750102,-300.0,0.00021479,2]
[340968400,1730179750124,-11163.17487631,0.0002148,2]
[340968401,1730179750146,-522.53505483,0.00021564,2]
[340968402,1730179750169,-250.0,0.00021664,2]
[340968403,1730179750192,-166.666667,0.00021827,2]
[340968404,1730179750214,-166.666667,0.00021909,2]
[340968405,1730179750236,-167.502647,0.00021918,2]
[340968406,1730179750259,-166.666667,0.0002199,2]
[340968407,1730179750280,-189.0,0.00022,2]
[340968408,1730179750300,-167.0,0.00022,2]
[340968409,1730179750322,-156.0,0.00022,2]
[340968410,1730179750347,-787.77270494,0.0002201,16]
[340968411,1730179750369,-166.666667,0.00022071,2]
[340968412,1730179750390,-118.03179147,0.00022152,2]
[340968413,1730179751084,-48.63487553,0.00022152,2]
[340968414,1730179751275,-189.0,0.00022192,2]
[340968415,1730179751299,-7.36512447,0.00022234,2]
[340968479,1730179832605,-159.30154253,0.00022234,2]
[340968481,1730179832615,-166.666667,0.00022315,2]
[340968483,1730179832625,-166.666667,0.00022396,2]
[340968485,1730179832634,-166.666667,0.00022477,2]
[340968487,1730179832643,-166.666667,0.00022558,2]
[340968489,1730179832652,-378.694,0.0002257,2]
[340968491,1730179832662,-1783.14547535,0.00022633,2]
[340968508,1730179838728,-166.666667,0.0002264,2]
[340968509,1730179838738,-166.666667,0.00022721,2]
[340968510,1730179838748,-166.666667,0.00022802,2]
[340968511,1730179838757,-166.666667,0.00022883,2]
[340968512,1730179838766,-166.666667,0.00022965,2]
[340968513,1730179838776,-189.0,0.00023014,2]
[340968514,1730179838785,-168.0,0.00023014,2]
[340968515,1730179838794,-472.0093553,0.00023259,2]
[340968516,1730179838803,-2970.43061881,0.00023365,2]
[340968573,1730180028233,172.588396,0.00013973,2]
[340968688,1730180621592,800.0,0.00035497,30]
[340968692,1730180673614,2000.0,0.00035544,30]
[340968695,1730180789714,200.0,0.00035544,30]
[340968696,1730180828102,-300.0,0.00021186,2]
[340968697,1730180828124,-300.0,0.00021186,2]
[340968698,1730180828146,-303.81193636,0.00021187,2]
[340968699,1730180846123,-320.2735632,0.00021187,2]
[340968700,1730180853145,-7804.83412749,0.00021187,2]
[340968701,1730180854087,-15096.37043369,0.00021187,2]
[340968702,1730180860488,1500.0,0.00035544,30]
[340968704,1730180961088,-164.55098954,0.00021029,2]
[340968705,1730180974120,-118.47246846,0.00021029,2]
[340968706,1730180974142,-1374.70993926,0.00021187,2]
[340968707,1730180974163,-1233.5152222,0.00021224,2]
[340968708,1730180974185,-2238.919668,0.00021395,2]
[340968709,1730180974206,-177.083335,0.00021705,2]
[340968710,1730180974228,-194.6527204,0.00021918,2]
[340968711,1730180974250,-177.083335,0.00021931,2]
[340968712,1730180974271,-300.0,0.00021991,2]
[340968713,1730180974291,-300.0,0.00021991,2]
[340968714,1730180974312,-8271.25303477,0.00021992,2]
[340968715,1730180974333,-160.0,0.00022,2]
[340968716,1730180974356,-712.30201262,0.00022079,2]
[340968717,1730180974381,-2238.919668,0.0002208,2]
[340968718,1730180974402,-5043.08859629,0.00022091,2]
[340968794,1730181032540,260.68,0.0002,2]
[340968795,1730181032564,220.7722463,0.0002,2]
[340968796,1730181032590,424604.2222739,0.0002,2]
[340968808,1730181037906,-904.122008,0.00021556,2]
[340968809,1730181037916,-177.083335,0.00022157,2]
[340968810,1730181037925,-904.122008,0.00022241,2]
[340968811,1730181037935,-212.9743993,0.00022341,2]
[340968812,1730181037944,-177.083335,0.00022383,2]
[340968813,1730181037954,-300.0,0.00022512,2]
[340968814,1730181037963,-300.0,0.00022512,2]
[340968815,1730181037973,-5000.0,0.00022513,2]
[340968816,1730181037982,-5000.0,0.00022513,2]
[340968817,1730181037992,-177.083335,0.0002261,2]
[340968818,1730181038002,-500.0,0.00022761,2]
[340968819,1730181038011,-500.0,0.00022761,2]
[340968820,1730181038020,-500.0,0.00022761,2]
[340968821,1730181038031,-500.0,0.00022761,2]
[340968822,1730181038040,-500.0,0.00022761,2]
[340968823,1730181038050,-267.22533777,0.00022761,2]
[340968824,1730181038059,-500.0,0.00022761,2]
[340968825,1730181038068,-500.0,0.00022761,2]
[340968826,1730181038077,-500.0,0.00022761,2]
[340968827,1730181038086,-500.0,0.00022761,2]
[340968828,1730181038095,-500.0,0.00022761,2]
[340968829,1730181038106,-500.0,0.00022761,2]
[340968830,1730181038115,-500.0,0.00022761,2]
[340968831,1730181038124,-500.0,0.00022761,2]
[340968832,1730181038133,-500.0,0.00022761,2]
[340968833,1730181038142,-500.0,0.00022761,2]
[340968834,1730181038153,-500.0,0.00022761,2]
[340968835,1730181038162,-500.0,0.00022761,2]
[340968836,1730181038171,-500.0,0.00022761,2]
[340968838,1730181038181,-650.0,0.00022761,2]
[340968840,1730181038190,-500.0,0.00022761,2]
[340968842,1730181038200,-500.0,0.00022761,2]
[340968843,1730181038209,-500.0,0.00022761,2]
[340968844,1730181038217,-500.0,0.00022761,2]
[340968845,1730181038226,-500.0,0.00022761,2]
[340968846,1730181038236,-500.0,0.00022761,2]
[340968847,1730181038245,-250.0,0.00022761,2]
[340968848,1730181038254,-500.0,0.00022761,2]
[340968849,1730181038263,-500.0,0.00022761,2]
[340968850,1730181038272,-500.0,0.00022761,2]
[340968851,1730181038283,-500.0,0.00022761,2]
[340968852,1730181038292,-500.0,0.00022761,2]
[340968853,1730181038302,-500.0,0.00022761,2]
[340968854,1730181038311,-500.0,0.00022761,2]
[340968855,1730181038319,-474.86800842,0.00022762,2]
[340968856,1730181038329,-177.083335,0.00022836,2]
[340968857,1730181038338,-904.122008,0.00022926,2]
[340968858,1730181038348,-6391.06950295,0.0002293,2]
[340968859,1730181038373,-2466.72539495,0.0002293,2]
[340968860,1730181038383,-8857.7948979,0.00023117,2]
[340968861,1730181038392,-200.4571614,0.000232,2]
[340968862,1730181038401,-500.0,0.000236,2]
[340968863,1730181038410,-500.0,0.000236,2]
[340968864,1730181038419,-500.0,0.000236,2]
[340968865,1730181038429,-153.0,0.00023687,2]
[340968866,1730181038438,-153.0,0.00023687,2]
[340968867,1730181038447,-475.0,0.00023693,2]
[340968868,1730181038455,-475.0,0.00023693,2]
[340968869,1730181038465,-475.0,0.00023693,2]
[340968870,1730181038474,-475.0,0.00023693,2]
[340968871,1730181038569,-475.0,0.00023693,2]
[340968872,1730181038578,-475.0,0.00023693,2]
[340968873,1730181038588,-475.0,0.00023693,2]
[340968874,1730181038597,-475.0,0.00023693,2]
[340968875,1730181038606,-475.0,0.00023693,2]
[340968876,1730181038615,-475.0,0.00023693,2]
[340968877,1730181038624,-475.0,0.00023693,2]
[340968878,1730181038633,-475.0,0.00023693,2]
[340968879,1730181038643,-475.0,0.00023693,2]
[340968880,1730181038652,-475.0,0.00023693,2]
[340968881,1730181038660,-153.0,0.00023709,2]
[340968882,1730181038670,-153.0,0.00023709,2]
[340968883,1730181038679,-475.0,0.00023712,2]
[340968884,1730181038688,-475.0,0.00023712,2]
[340968885,1730181038697,-475.0,0.00023712,2]
[340968886,1730181038707,-475.0,0.00023712,2]
[340968887,1730181038717,-475.0,0.00023712,2]
[340968888,1730181038727,-475.0,0.00023712,2]
[340968889,1730181038736,-254.58869878,0.00023712,2]
[340968890,1730181038948,-220.41130122,0.00023712,2]
[340968891,1730181038959,-475.0,0.00023712,2]
[340968892,1730181038968,-475.0,0.00023712,2]
[340968893,1730181038978,-475.0,0.00023712,2]
[340968894,1730181038989,-475.0,0.00023712,2]
[340968895,1730181038998,-475.0,0.00023712,2]
[340968896,1730181039009,-475.0,0.00023712,2]
[340968897,1730181039019,-475.0,0.00023712,2]
[340968898,1730181039029,-210.76888226,0.00023724,7]
[340968899,1730181039039,-153.0,0.00023726,2]
[340968900,1730181039048,-153.0,0.00023726,2]
[340968901,1730181039058,-593.73,0.0002373,3]
[340968902,1730181039069,-475.0,0.00023731,2]
[340968903,1730181039078,-475.0,0.00023731,2]
[340968904,1730181039088,-475.0,0.00023731,2]
[340968905,1730181039098,-475.0,0.00023731,2]
[340968906,1730181039108,-475.0,0.00023731,2]
[340968907,1730181039117,-475.0,0.00023731,2]
[340968908,1730181039127,-475.0,0.00023731,2]
[340968909,1730181039138,-475.0,0.00023731,2]
[340968910,1730181039148,-475.0,0.00023731,2]
[340968911,1730181039157,-475.0,0.00023731,2]
[340968912,1730181039167,-475.0,0.00023731,2]
[340968913,1730181039177,-475.0,0.00023731,2]
[340968914,1730181039187,-475.0,0.00023731,2]
[340968915,1730181039196,-475.0,0.00023731,2]
[340968916,1730181039206,-791.61,0.0002374,3]
[340968917,1730181039215,-395.81,0.0002374,3]
[340968918,1730181039225,-197.9,0.0002374,3]
[340968919,1730181039235,-153.0,0.00023745,2]
[340968920,1730181039246,-153.0,0.00023745,2]
[340968921,1730181039256,-475.0,0.0002375,2]
[340968922,1730181039266,-475.0,0.0002375,2]
[340968923,1730181039277,-475.0,0.0002375,2]
[340968924,1730181039286,-475.0,0.0002375,2]
[340968925,1730181039296,-475.0,0.0002375,2]
[340968926,1730181039304,-475.0,0.0002375,2]
[340968927,1730181039314,-475.0,0.0002375,2]
[340968928,1730181039326,-475.0,0.0002375,2]
[340968929,1730181039335,-475.0,0.0002375,2]
[340968930,1730181039345,-475.0,0.0002375,2]
[340968932,1730181039355,-475.0,0.0002375,2]
[340968933,1730181039364,-475.0,0.0002375,2]
[340968934,1730181039374,-475.0,0.0002375,2]
[340968935,1730181039384,-475.0,0.0002375,2]
[340968936,1730181039393,-456.602,0.00023766,4]
[340968937,1730181039402,-251.83972992,0.0002378,2]
[340968938,1730181039412,-251.83972991,0.00023803,2]
[340968939,1730181039422,-151.80058621,0.00023824,7]
[340968940,1730181039431,-151.80058621,0.00023824,7]
[340968941,1730181039441,-151.80058621,0.00023824,7]
[340968942,1730181039450,-151.80058621,0.00023824,7]
[340968943,1730181039459,-151.80058621,0.00023824,7]
[340968944,1730181039469,-151.80058621,0.00023824,7]
[340968946,1730181039478,-151.80058621,0.00023824,7]
[340968947,1730181039488,-151.80058621,0.00023824,7]
[340968948,1730181039497,-151.8,0.00023824,7]
[340968949,1730181039506,-157.63907029,0.00023824,7]
[340968950,1730181039516,-157.63907029,0.00023824,7]
[340968951,1730181039526,-157.63907029,0.00023824,7]
[340968952,1730181039535,-157.63907029,0.00023824,7]
[340968953,1730181039545,-157.63907029,0.00023824,7]
[340968954,1730181039554,-157.63907029,0.00023824,7]
[340968955,1730181039563,-157.63907029,0.00023824,7]
[340968956,1730181039573,-157.63907029,0.00023824,7]
[340968957,1730181039582,-157.63907029,0.00023824,7]
[340968958,1730181039591,-157.63907029,0.00023824,7]
[340968959,1730181039601,-251.83972991,0.00023825,2]
[340968960,1730181039611,-251.83972991,0.00023848,2]
[340968961,1730181039620,-5052.71452465,0.00023863,2]
[340968962,1730181039630,-369.02531775,0.00023869,2]
[340968964,1730181039639,-356.36707887,0.00023869,2]
[340968966,1730181039648,-216.04547438,0.00023869,2]
[340968967,1730181039657,-500.0,0.00023869,2]
[340968968,1730181039666,-500.0,0.00023869,2]
[340968969,1730181039676,-199.05067362,0.00023869,2]
[340968970,1730181039685,-251.83972991,0.0002387,2]
[340968971,1730181039695,-151.0,0.0002387,7]
[340968972,1730181039705,-155.331234,0.0002387,7]
[340968973,1730181039715,-151.0,0.0002387,7]
[340968974,1730181039724,-149100.60135756,0.0002387,3]
[340968975,1730181039738,-13264.96179044,0.0002387,3]
[340968976,1730181039748,-89697.592454,0.0002387,3]
[340968978,1730181039760,-500.0,0.00023873,2]
[340968980,1730181039769,-161.47562419,0.00023873,2]
[340968981,1730181039779,-501.15174866,0.00023873,2]
[340968982,1730181039788,-500.0,0.00023873,2]
[340968983,1730181039797,-500.0,0.00023873,2]
[340968984,1730181039806,-10641.1272668,0.0002389,2]
[340968986,1730181039816,-300.0,0.000239,7]
[340968988,1730181039826,-1000.0,0.000239,2]
[340968989,1730181039835,-268.273165,0.00023914,7]
[340968990,1730181039844,-151.0,0.00023914,7]
[340968991,1730181039854,-151.0,0.00023914,7]
[340968992,1730181039863,-243548.344722,0.00023914,3]
[340968993,1730181039872,-179395.184908,0.00023914,3]
[340968994,1730181039881,-184937.88072636,0.00023924,2]
[340968995,1730181039891,-151.0,0.00023924,7]
[340968996,1730181039900,-157.63907029,0.00023936,7]
[340968997,1730181039910,-44848.796227,0.0002396,3]
[340968998,1730181039920,-151.0,0.0002397,7]
[340968999,1730181039929,-151.0,0.0002397,7]
[340969000,1730181039939,-152.777005,0.0002397,7]
[340969001,1730181040046,-499.631339,0.0002397,7]
[340969002,1730181040055,-151.0,0.0002397,7]
[340969003,1730181040065,-499.631339,0.0002397,7]
[340969004,1730181040075,-282.624666,0.0002397,7]
[340969005,1730181040084,-282.624666,0.0002397,7]
[340969006,1730181040094,-155.314687,0.0002397,7]
[340969007,1730181040103,-214.653737,0.0002397,7]
[340969008,1730181040113,-151.0,0.0002397,7]
[340969009,1730181040122,-156.493874,0.0002397,7]
[340969010,1730181040132,-156.493874,0.0002397,7]
[340969011,1730181040142,-201.503852,0.0002397,7]
[340969012,1730181040152,-151.0,0.0002397,7]
[340969013,1730181040161,-333.331583,0.0002397,7]
[340969014,1730181040171,-151.0,0.0002397,7]
[340969015,1730181040180,-333.331583,0.0002397,7]
[340969016,1730181040189,-151.0,0.0002397,7]
[340969017,1730181040199,-151.0,0.0002397,7]
[340969018,1730181040207,-151.0,0.0002397,7]
[340969019,1730181040217,-151.0,0.0002397,7]
[340969020,1730181040227,-151.0,0.0002397,7]
[340969021,1730181040237,-151.0,0.0002397,7]
[340969022,1730181040247,-151.610831,0.0002397,7]
[340969023,1730181040256,-151.0,0.0002397,7]
[340969024,1730181040265,-151.0,0.0002397,7]
[340969025,1730181040276,-151.0,0.0002397,7]
[340969026,1730181040285,-151.0,0.0002397,7]
[340969027,1730181040294,-151.986856,0.0002397,7]
[340969028,1730181040304,-151.0,0.0002397,7]
[340969029,1730181040314,-272.505376,0.0002397,7]
[340969030,1730181040324,-251.88308,0.0002397,7]
[340969031,1730181040333,-251.88308,0.0002397,7]
[340969032,1730181040342,-251.88308,0.0002397,7]
[340969033,1730181040351,-251.88308,0.0002397,7]
[340969034,1730181040360,-156.816932,0.0002397,7]
[340969035,1730181040369,-500.0,0.00023973,2]
[340969036,1730181040379,-500.0,0.00023973,2]
[340969037,1730181040388,-482.28026567,0.00023973,2]
[340969038,1730181040398,-500.0,0.00023973,2]
[340969039,1730181040407,-500.0,0.00023973,2]
[340969040,1730181040417,-500.0,0.00023973,2]
[340969041,1730181040426,-500.0,0.00023973,2]
[340969042,1730181040435,-500.0,0.00023973,2]
[340969043,1730181040445,-504.80913533,0.00023973,2]
[340969044,1730181040454,-500.70376259,0.00023973,2]
[340969045,1730181040463,-152.63434388,0.00023973,2]
[340969046,1730181040472,-500.0,0.00023973,2]
[340969047,1730181040481,-191.41300461,0.00023973,2]
[340969048,1730181040491,-500.81844554,0.00023973,2]
[340969049,1730181040500,-500.0,0.00023973,2]
[340969050,1730181040510,-156.121294,0.0002398,7]
[340969051,1730181040519,-151.0,0.0002398,7]
[340969052,1730181040532,-3124.36792809,0.00023988,2]
[340969053,1730181040541,-500.0,0.00023989,2]
[340969054,1730181040550,-151.0,0.0002399,7]
[340969055,1730181040559,-265.984984,0.0002399,7]
[340969056,1730181040569,-151.0,0.0002399,7]
[340969057,1730181040578,-499.631339,0.0002399,7]
[340969058,1730181040587,-153.807788,0.0002399,7]
[340969059,1730181040596,-499.631339,0.0002399,7]
[340969060,1730181040605,-282.624666,0.0002399,7]
[340969061,1730181040614,-282.624666,0.0002399,7]
[340969062,1730181040623,-151.0,0.0002399,7]
[340969063,1730181040632,-156.493874,0.0002399,7]
[340969064,1730181040642,-156.493874,0.0002399,7]
[340969065,1730181040651,-151.0,0.0002399,7]
[340969066,1730181040659,-333.331583,0.0002399,7]
[340969067,1730181040668,-151.0,0.0002399,7]
[340969068,1730181040677,-333.331583,0.0002399,7]
[340969069,1730181040686,-151.0,0.0002399,7]
[340969070,1730181040695,-151.0,0.0002399,7]
[340969071,1730181040705,-151.0,0.0002399,7]
[340969072,1730181040714,-151.0,0.0002399,7]
[340969073,1730181040724,-151.0,0.0002399,7]
[340969074,1730181040733,-151.0,0.0002399,7]
[340969075,1730181040742,-251.88308,0.0002399,7]
[340969076,1730181040754,-251.88308,0.0002399,7]
[340969077,1730181040763,-201.0,0.0002399,10]
[340969078,1730181040773,-15549.85529162,0.00024,2]
[340969079,1730181040784,-68658.22585582,0.00024,2]
[340969080,1730181041040,-121676.86039545,0.00024,2]
[340969081,1730181041049,-151.0,0.00024,7]
[340969082,1730181041059,-151.0,0.00024,7]
[340969083,1730181041067,-499.631339,0.00024,7]
[340969084,1730181041077,-499.631339,0.00024,7]
[340969085,1730181041087,-282.624666,0.00024,7]
[340969086,1730181041096,-282.624666,0.00024,7]
[340969087,1730181041105,-266.714887,0.00024,2]
[340969088,1730181041114,-151.0,0.00024,7]
[340969089,1730181041123,-156.493874,0.00024,7]
[340969090,1730181041133,-156.493874,0.00024,7]
[340969091,1730181041142,-151.0,0.00024,7]
[340969092,1730181041151,-333.331583,0.00024,7]
[340969093,1730181041160,-151.0,0.00024,7]
[340969094,1730181041170,-333.331583,0.00024,7]
[340969095,1730181041180,-151.0,0.00024,7]
[340969096,1730181041189,-151.0,0.00024,7]
[340969097,1730181041198,-151.0,0.00024,7]
[340969098,1730181041207,-151.0,0.00024,7]
[340969099,1730181041216,-151.0,0.00024,7]
[340969100,1730181041225,-151.0,0.00024,7]
[340969101,1730181041234,-251.88308,0.00024,7]
[340969102,1730181041243,-251.88308,0.00024,7]
[340969103,1730181041252,-150.112245,0.000241,9]
[340969104,1730181041261,-150.112233,0.000241,9]
[340969105,1730181041270,-150.112233,0.000241,10]
[340969106,1730181041355,-150.112233,0.000241,8]
[340969107,1730181041366,-150.112233,0.000241,6]
[340969108,1730181041375,-150.112233,0.000241,9]
[340969109,1730181041384,-151.0,0.00024116,7]
[340969110,1730181041394,-151.0,0.00024116,7]
[340969111,1730181041403,-157.63907029,0.00024123,7]
[340969112,1730181041413,-150.572,0.00024139,2]
[340969113,1730181041422,-1110.434,0.00024139,2]
[340969114,1730181041431,-528.0,0.00024139,2]
[340969115,1730181041440,-2389.989,0.00024139,2]
[340969116,1730181041449,-151.0,0.00024166,7]
[340969117,1730181041458,-152.227843,0.00024166,7]
[340969118,1730181041468,-151.0,0.00024166,7]
[340969119,1730181041478,-151.0,0.00024166,7]
[340969120,1730181041487,-51622.47356048,0.00024166,2]
[340969150,1730181176067,172.588396,0.00013973,2]
[340969172,1730181704219,170.0,0.00013,120]
[340969173,1730181778023,2000.0,0.00035488,30]
[340969192,1730182031136,-283.0234591,0.00020812,2]
[340969193,1730182031158,-300.0,0.00020904,2]
[340969194,1730182031180,-300.0,0.00020904,2]
[340969195,1730182031204,-2079.03533171,0.00020905,2]
[340969196,1730182040139,-854.02422722,0.00020905,2]
[340969197,1730182051088,-351.46640081,0.00020905,2]
[340969205,1730182147541,401.0,0.0002,2]
[340969206,1730182149095,-225.2778024,0.00020775,2]
[340969207,1730182149117,-300.0,0.00020904,2]
[340969208,1730182149140,-300.0,0.00020904,2]
[340969209,1730182149166,-21615.47404026,0.00020905,2]
[340969210,1730182158097,-176.503452,0.0002096,2]
[340969211,1730182158120,-162.255798,0.00021118,2]
[340969212,1730182158142,-162.255798,0.0002118,2]
[340969213,1730182158165,-162.255798,0.00021241,2]
[340969214,1730182158187,-162.255798,0.00021302,2]
[340969215,1730182158209,-162.255798,0.00021363,2]
[340969216,1730182158230,-162.255798,0.00021424,2]
[340969217,1730182158251,-162.255798,0.00021485,2]
[340969218,1730182158272,-162.255798,0.00021546,2]
[340969219,1730182158293,-162.255798,0.00021607,2]
[340969220,1730182158316,-162.255798,0.00021668,2]
[340969221,1730182158341,-162.255798,0.0002173,2]
[340969222,1730182158365,-162.255798,0.00021791,2]
[340969223,1730182158387,-162.255798,0.00021852,2]
[340969224,1730182158409,-162.255798,0.00021913,2]
[340969225,1730182158433,-167.502647,0.00021918,2]
[340969226,1730182158454,-162.255798,0.00021974,2]
[340969227,1730182158475,-225.0,0.00022,2]
[340969228,1730182158497,-169.0,0.00022,2]
[340969229,1730182158520,-162.255798,0.00022035,2]
[340969230,1730182158542,-162.255798,0.00022096,2]
[340969231,1730182158564,-162.255798,0.00022157,2]
[340969232,1730182159494,167.502647,0.00021918,2]
[340969235,1730182168084,-225.0,0.00022192,2]
[340969236,1730182168105,-162.255798,0.00022219,2]
[340969414,1730182243148,-300.0,0.0002279,2]
[340969417,1730182243157,-300.0,0.0002279,2]
[340969420,1730182243167,-500.0,0.000228,2]
[340969423,1730182243176,-153.0,0.0002285,2]
[340969426,1730182243185,-153.0,0.00022869,2]
[340969429,1730182243195,-153.0,0.00022889,2]
[340969432,1730182243205,-379.647,0.0002289,2]
[340969435,1730182243214,-225.0,0.00023014,2]
[340969438,1730182243223,-598.52821845,0.00023201,2]
[340969441,1730182243232,-224.26337816,0.0002377,2]
[340969444,1730182243242,-315.5,0.00023777,2]
[340969447,1730182243252,-412.4735354,0.00023781,2]
[340969450,1730182243261,-479.432,0.00023824,5]
[340969453,1730182243271,-306.0,0.000239,2]
[340969456,1730182243280,-600.0,0.00024,2]
[340969459,1730182243290,-316.57867228,0.00024,2]
[340969462,1730182243299,-201.0,0.0002405,11]
[340969465,1730182243309,-1000.0,0.00024056,2]
[340969468,1730182243318,-307.85,0.00024116,3]
[340969471,1730182243327,-153.92,0.00024116,3]
[340969474,1730182243336,-461.79,0.00024116,3]
[340969477,1730182243346,-3424.3,0.0002412,2]
[340969480,1730182243355,-249.45695521,0.00024125,2]
[340969483,1730182243365,-500.0,0.00024125,2]
[340969486,1730182243375,-339.33547154,0.00024125,2]
[340969489,1730182243384,-500.0,0.00024125,2]
[340969492,1730182243393,-500.0,0.00024125,2]
[340969495,1730182243403,-365.42421574,0.00024125,2]
[340969498,1730182243412,-500.0,0.00024125,2]
[340969501,1730182243421,-500.0,0.00024125,2]
[340969504,1730182243430,-500.0,0.00024125,2]
[340969507,1730182243439,-500.0,0.00024125,2]
[340969510,1730182243449,-500.0,0.00024125,2]
[340969513,1730182243458,-500.0,0.00024125,2]
[340969516,1730182243467,-288.18118496,0.00024125,2]
[340969519,1730182243477,-500.0,0.00024125,2]